bitfinex/quotes_SOLUSD_20240605
["timestamp","ask_amount","ask_price","bid_price","bid_amount"]
[1717594014141,8.2712,173.93,173.87,2.1279]
[1717594016144,8.2712,173.93,173.88,2.1278]
[1717594016331,2.1277,173.9,173.85,2.1281]
[1717594016536,6.3693,173.89,173.85,2.1281]
[1717594016736,6.3693,173.89,173.82,4.2571]
[1717594016948,6.3693,173.89,173.86,2.1281]
[1717594018446,6.3693,173.89,173.85,2.1282]
[1717594018756,2.1276,173.9,173.85,2.1282]
[1717594019147,2.1275,173.91,173.86,2.1281]
[1717594020144,2.1276,173.9,173.85,2.1282]
[1717594020865,8.185,173.89,173.8,19.1595]
[1717594021063,8.185,173.89,173.84,2.1283]
[1717594021357,8.185,173.89,173.85,2.1282]
[1717594021538,2.1279,173.88,173.83,2.1284]
[1717594021742,8.185,173.89,173.84,2.1283]
[1717594022968,2.1276,173.9,173.85,2.1282]
[1717594023266,8.3708,173.9,173.85,2.1282]
[1717594024669,2.1277,173.89,173.85,2.1282]
[1717594025056,2.1277,173.89,173.84,2.1283]
[1717594025255,6.2432,173.9,173.84,2.1283]
[1717594025453,8.3776,173.89,173.84,2.1283]
[1717594028857,6.1956,173.88,173.84,2.1283]
[1717594029176,22.3629,173.93,173.85,2.1282]
[1717594029177,2.1276,173.9,173.85,2.1282]
[1717594033259,26.6176,173.93,173.83,0.17]
[1717594033463,2.1277,173.9,173.85,2.1282]
[1717594034255,2.1278,173.89,173.84,2.1283]
[1717594035886,4.2548,173.92,173.85,2.1282]
[1717594036375,4.2548,173.92,173.83,0.34]
[1717594036376,2.1277,173.89,173.84,2.1283]
[1717594037182,2.1277,173.9,173.85,2.1282]
[1717594037692,2.1278,173.89,173.84,2.1283]
[1717594038058,2.1278,173.89,173.85,2.1282]
[1717594038378,2.1278,173.89,173.84,2.1283]
[1717594038586,2.1278,173.89,173.85,2.1282]
[1717594038783,2.1278,173.89,173.84,2.1283]
[1717594039271,2.1277,173.9,173.85,2.1282]
[1717594040488,2.1279,173.88,173.84,2.1283]
[1717594041782,2.1277,173.89,173.85,2.1282]
[1717594042085,2.1277,173.89,173.84,2.1283]
[1717594042292,2.1277,173.89,173.84,2.1282]
[1717594042468,2.1277,173.89,173.85,2.1282]
[1717594046683,4.255,173.91,173.83,10.6424]
[1717594046886,2.1277,173.9,173.86,2.1281]
[1717594047077,2.1277,173.9,173.83,10.6424]
[1717594047078,2.1277,173.89,173.85,2.1282]
[1717594048984,2.1276,173.91,173.86,2.1281]
[1717594049175,2.1276,173.91,173.87,2.128]
[1717594049382,2.1276,173.91,173.86,2.128]
[1717594050293,2.1276,173.9,173.86,2.128]
[1717594050999,4.2551,173.91,173.84,2.1283]
[1717594051190,10.93018082,173.9,173.83,2.1284]
[1717594051380,2.1279,173.88,173.84,2.1283]
[1717594051896,2.1279,173.88,173.82,4.2572]
[1717594052095,2.1279,173.88,173.83,2.1284]
[1717594052976,2.128,173.87,173.83,2.1284]
[1717594053178,2.1279,173.88,173.83,2.1284]
[1717594056004,2.1279,173.88,173.84,2.1283]
[1717594058085,2.1278,173.89,173.84,2.1283]
[1717594058403,2.1279,173.88,173.84,2.1283]
[1717594058730,2.1279,173.88,173.83,2.1284]
[1717594059583,2.1279,173.88,173.84,2.1283]
[1717594060805,2.128,173.87,173.83,2.1284]
[1717594060975,2.1279,173.88,173.83,2.1284]
[1717594061378,2.128,173.87,173.83,2.1284]
[1717594061997,4.2554,173.9,173.84,2.1283]
[1717594062202,2.1277,173.89,173.85,2.1282]
[1717594063308,10.294,173.92,173.86,2.1281]
[1717594063509,2.1277,173.9,173.85,2.1281]
[1717594063723,2.1274,173.92,173.87,2.1279]
[1717594064090,2.1275,173.91,173.87,2.1279]
[1717594064406,2.1274,173.92,173.87,2.1279]
[1717594064914,2.1275,173.91,173.87,2.1279]
[1717594065290,2.1275,173.91,173.86,2.128]
[1717594065496,2.1275,173.91,173.83,12.7707]
[1717594065497,2.1276,173.9,173.85,2.1282]
[1717594065999,2.1276,173.9,173.83,4.2568]
[1717594066185,2.1276,173.9,173.85,2.1282]
[1717594066612,2.1275,173.91,173.84,0.34]
[1717594066890,2.1275,173.91,173.86,2.128]
[1717594070492,2.1276,173.9,173.86,2.128]
[1717594070695,2.1276,173.9,173.85,2.1282]
[1717594071716,2.1275,173.91,173.86,2.128]
[1717594071912,2.1276,173.9,173.86,2.128]
[1717594073390,2.1276,173.91,173.86,2.128]
[1717594074321,2.1276,173.9,173.86,2.128]
[1717594075394,2.1276,173.91,173.86,2.128]
[1717594076707,2.1276,173.91,173.87,2.128]
[1717594076922,2.1279,173.88,173.81,8.515]
[1717594077216,4.2555,173.89,173.83,2.1284]
[1717594077517,2.128,173.87,173.83,2.1284]
[1717594077915,2.1279,173.88,173.83,2.1284]
[1717594078117,2.1279,173.88,173.84,2.1283]
[1717594080021,2.128,173.87,173.83,2.1284]
[1717594080529,2.1279,173.88,173.84,2.1283]
[1717594081326,4.2553,173.9,173.82,4.2572]
[1717594081327,2.1278,173.89,173.85,2.1282]
[1717594081502,2.1279,173.88,173.84,2.1283]
[1717594087298,4.2553,173.9,173.83,2.1284]
[1717594087299,2.128,173.87,173.83,2.1284]
[1717594092530,2.128,173.87,173.81,10.6436]
[1717594092531,2.1279,173.88,173.84,2.1283]
[1717594093130,6.0211,173.88,173.8,10.644]
[1717594093341,2.1281,173.86,173.82,2.1285]
[1717594093837,2.1281,173.87,173.83,2.1285]
[1717594094422,2.1281,173.86,173.82,2.1286]
[1717594095146,2.128,173.87,173.83,2.1284]
[1717594095638,2.128,173.87,173.84,2.1283]
[1717594095939,19.1504,173.89,173.81,4.2574]
[1717594096139,2.128,173.87,173.83,2.1284]
[1717594096515,2.1279,173.88,173.84,2.1283]
[1717594097242,6.3829,173.91,173.8,380.3]
[1717594097429,2.1279,173.88,173.84,2.1282]
[1717594097624,2.1278,173.89,173.85,2.1282]
[1717594097831,2.1279,173.88,173.84,2.1283]
[1717594099124,2.1278,173.89,173.85,2.1282]
[1717594099326,2.1277,173.9,173.86,2.1281]
[1717594099535,14.7197,173.92,173.83,10.6424]
[1717594099536,2.1277,173.89,173.85,2.1281]
[1717594102146,2.1277,173.89,173.86,2.1281]
[1717594102453,2.1277,173.89,173.84,6.2655]
[1717594104154,2.1277,173.89,173.85,2.1282]
[1717594105124,2.1277,173.89,173.86,2.1281]
[1717594106124,2.1277,173.89,173.85,2.1281]
[1717594106452,2.1279,173.88,173.85,2.1281]
[1717594106651,2.1278,173.89,173.85,2.1281]
[1717594107346,2.1277,173.9,173.84,16.9073]
[1717594107546,2.1277,173.89,173.85,2.1281]
[1717594107843,2.1277,173.9,173.86,2.128]
[1717594108237,2.1278,173.89,173.86,2.128]
[1717594110274,2.1278,173.89,173.85,2.1282]
[1717594111361,2.1278,173.89,173.84,6.2655]
[1717594111362,2.1278,173.89,173.86,2.1281]
[1717594111856,2.1277,173.9,173.86,2.1281]
[1717594112644,2.1278,173.89,173.86,2.1281]
[1717594115554,2.1278,173.89,173.85,2.1281]
[1717594116058,2.41958082,173.89,173.86,2.1281]
[1717594116762,2.41958082,173.89,173.85,2.1282]
[1717594117650,2.41958082,173.89,173.86,2.1281]
[1717594119666,0.29178082,173.89,173.86,2.1281]
[1717594119957,2.1277,173.9,173.86,2.1281]
[1717594121665,0.29178082,173.89,173.86,2.1281]
[1717594121943,2.1277,173.9,173.86,2.1281]
[1717594122143,0.29178082,173.89,173.86,2.1281]
[1717594122849,2.1279,173.88,173.85,2.1282]
[1717594123461,2.1278,173.89,173.85,2.1282]
[1717594123850,2.1278,173.89,173.86,2.1281]
[1717594126169,2.1279,173.88,173.85,2.1282]
[1717594128151,2.1278,173.89,173.85,2.1282]
[1717594128749,2.1278,173.89,173.86,2.1281]
[1717594128956,19.1469,173.92,173.86,2.1281]
[1717594129260,2.1278,173.89,173.86,2.1281]
[1717594129875,2.1278,173.89,173.84,4.2566]
[1717594130068,2.1277,173.9,173.86,2.128]
[1717594130973,2.1277,173.89,173.86,2.128]
[1717594131775,2.1277,173.9,173.86,2.128]
[1717594132349,2.1277,173.89,173.86,2.128]
[1717594132661,2.1277,173.89,173.85,2.1282]
[1717594133170,2.1277,173.89,173.86,2.1281]
[1717594134270,2.1277,173.89,173.85,2.1282]
[1717594135386,19.1468,173.92,173.84,2.1283]
[1717594135387,2.1279,173.88,173.84,2.1283]
[1717594136289,2.1279,173.88,173.85,2.1282]
[1717594136486,2.1279,173.88,173.84,2.1283]
[1717594136653,2.128,173.88,173.84,2.1283]
[1717594136851,2.128,173.87,173.84,2.1283]
[1717594137480,2.128,173.87,173.83,2.1284]
[1717594138492,2.1279,173.88,173.84,2.1283]
[1717594142573,2.1278,173.89,173.84,2.1283]
[1717594142776,2.1278,173.89,173.85,2.1282]
[1717594144281,2.1279,173.88,173.85,2.1282]
[1717594144486,2.1279,173.88,173.84,2.1283]
[1717594145716,2.1279,173.88,173.82,24.2571]
[1717594145717,2.1278,173.89,173.85,2.1282]
[1717594147102,2.1283,173.85,173.81,2.1287]
[1717594147409,6.1425,173.91,173.78,10.6453]
[1717594147410,2.1285,173.83,173.8,2.1288]
[1717594148088,2.1285,173.83,173.79,2.1289]
[1717594148291,2.1286,173.82,173.79,2.1289]
[1717594148831,2.1285,173.83,173.79,2.1289]
[1717594149193,2.1285,173.83,173.8,2.1288]
[1717594149505,2.1286,173.82,173.76,26.321]
[1717594149878,2.1286,173.82,173.79,2.1289]
[1717594150087,2.1285,173.83,173.79,2.1289]
[1717594150774,2.1284,173.84,173.79,4.2579]
[1717594151206,2.1284,173.84,173.81,2.1287]
[1717594151502,2.1284,173.84,173.8,2.1288]
[1717594152003,2.1285,173.83,173.8,2.1288]
[1717594153196,2.1284,173.84,173.8,2.1288]
[1717594153607,2.1285,173.83,173.8,2.1288]
[1717594153828,2.1284,173.84,173.8,2.1288]
[1717594154282,2.1285,173.83,173.8,2.1288]
[1717594154988,2.1285,173.83,173.76,30.5797]
[1717594154989,2.1287,173.81,173.78,2.129]
[1717594155189,2.1287,173.82,173.78,2.129]
[1717594155384,2.1287,173.81,173.78,2.129]
[1717594156221,2.1287,173.82,173.78,2.129]
[1717594156505,2.1287,173.82,173.79,2.1289]
[1717594156724,2.128,173.87,173.78,10.6455]
[1717594156910,10.71141916,173.91,173.84,2.1283]
[1717594157089,15.25839998,173.91,173.83,2.1284]
[1717594157292,2.128,173.87,173.82,2.1285]
[1717594157687,0.29178082,173.86,173.82,2.1285]
[1717594157888,14.96661916,173.91,173.84,2.1283]
[1717594158089,14.96661916,173.91,173.85,2.1282]
[1717594158090,2.1277,173.89,173.85,2.1282]
[1717594158397,2.1276,173.91,173.83,4.2568]
[1717594159112,2.1276,173.91,173.86,2.128]
[1717594160014,2.1276,173.9,173.86,2.128]
[1717594160419,2.1276,173.9,173.85,2.1282]
[1717594161215,2.1277,173.9,173.85,2.1282]
[1717594161716,6.67408082,173.92,173.84,2.1283]
[1717594161901,2.1277,173.89,173.84,2.1283]
[1717594162217,2.1279,173.88,173.84,2.1283]
[1717594163114,2.1277,173.9,173.83,4.2569]
[1717594163417,2.1277,173.89,173.85,2.1282]
[1717594163894,0.17,173.91,173.85,2.1282]
[1717594164215,2.1278,173.89,173.85,2.1282]
[1717594164419,0.17,173.91,173.81,10.6435]
[1717594164609,2.1279,173.88,173.83,2.1284]
[1717594165408,0.29178082,173.89,173.74,380.3]
[1717594165723,19.1489,173.9,173.83,2.1284]
[1717594165724,2.41978082,173.87,173.83,2.1284]
[1717594166602,2.128,173.87,173.83,2.1284]
[1717594167123,2.1279,173.88,173.84,2.1283]
[1717594167422,2.128,173.87,173.83,2.1284]
[1717594169734,2.1281,173.86,173.82,2.1285]
[1717594170431,2.128,173.87,173.83,2.1284]
[1717594170634,6.5529,173.91,173.84,2.1283]
[1717594170635,2.1279,173.88,173.84,2.1283]
[1717594171442,10.6377,173.91,173.85,2.1281]
[1717594171443,4.54688082,173.91,173.85,2.1281]
[1717594171617,2.1278,173.89,173.85,2.1281]
[1717594173151,2.1277,173.9,173.86,2.1281]
[1717594173719,2.1277,173.89,173.86,2.1281]
[1717594173922,2.1279,173.88,173.84,2.1283]
[1717594174127,2.1279,173.88,173.85,2.1282]
[1717594175523,2.1279,173.88,173.84,2.1283]
[1717594176422,2.1279,173.88,173.85,2.1282]
[1717594176745,2.1278,173.89,173.85,2.1282]
[1717594176935,2.1279,173.88,173.85,2.1282]
[1717594177643,2.1278,173.89,173.85,2.1282]
[1717594178435,2.1279,173.88,173.85,2.1282]
[1717594179546,2.1278,173.89,173.85,2.1282]
[1717594179720,10.6377,173.91,173.85,2.1282]
[1717594180426,2.1279,173.88,173.85,2.1282]
[1717594181920,2.1279,173.88,173.84,2.1283]
[1717594182449,2.1279,173.88,173.84,8.794]
[1717594183434,2.128,173.87,173.84,8.794]
[1717594183818,2.1279,173.88,173.84,8.794]
[1717594185228,2.128,173.87,173.84,8.794]
[1717594186649,2.128,173.87,173.83,2.1284]
[1717594186946,2.1281,173.87,173.83,2.1284]
[1717594188848,2.1281,173.87,173.84,2.1283]
[1717594190536,2.1281,173.87,173.83,2.1284]
[1717594191456,2.1281,173.87,173.84,2.1283]
[1717594192727,2.1279,173.88,173.84,2.1283]
[1717594193925,19.1492,173.9,173.84,2.1283]
[1717594194127,2.128,173.87,173.84,2.1283]
[1717594194347,2.1279,173.88,173.84,2.1283]
[1717594195549,2.128,173.87,173.84,2.1283]
[1717594195753,2.1279,173.88,173.84,2.1283]
[1717594196959,2.1279,173.88,173.85,2.1282]
[1717594197737,2.1279,173.88,173.84,2.1283]
[1717594199330,2.128,173.87,173.84,2.1283]
[1717594200126,2.41978082,173.87,173.84,2.1283]
[1717594200326,2.1282,173.86,173.82,2.1285]
[1717594200526,2.1282,173.86,173.8,10.644]
[1717594200726,2.1282,173.86,173.82,2.1285]
[1717594201150,2.1282,173.85,173.8,4.2575]
[1717594201381,2.1282,173.85,173.81,2.1287]
[1717594201529,2.1282,173.86,173.82,2.1286]
[1717594201729,2.1282,173.86,173.82,2.1285]
[1717594203758,4.256,173.87,173.77,30.5018]
[1717594203963,2.1286,173.82,173.78,2.129]
[1717594204165,2.1286,173.82,173.77,2.1291]
[1717594204373,2.1286,173.82,173.78,2.129]
[1717594204958,2.1289,173.8,173.76,2.1292]
[1717594205853,2.1289,173.8,173.74,4.259]
[1717594205854,2.1288,173.81,173.77,2.1292]
[1717594207449,2.1285,173.83,173.79,2.1289]
[1717594207668,2.1285,173.83,173.73,15.6464]
[1717594207953,2.1286,173.82,173.74,20.17]
[1717594208672,4.2568,173.84,173.74,20.17]
[1717594208855,4.54878082,173.83,173.74,20.0]
[1717594209058,0.29178082,173.82,173.72,24.2595]
[1717594209260,2.1289,173.8,173.72,20.0]
[1717594210660,2.1286,173.82,173.72,20.0]
[1717594210870,2.1286,173.82,173.73,0.34]
[1717594211073,19.1552,173.85,173.73,0.34]
[1717594211074,2.1288,173.81,173.73,0.34]
[1717594211276,2.1286,173.82,173.73,0.17]
[1717594211655,0.29178082,173.82,173.72,20.0]
[1717594211971,2.1289,173.8,173.72,20.0]
[1717594212277,2.1288,173.81,173.72,20.0]
[1717594212485,2.1288,173.8,173.72,20.0]
[1717594213051,16.6055,173.83,173.71,0.4]
[1717594213384,14.904,173.78,173.71,0.4]
[1717594213566,4.2585,173.77,173.71,0.4]
[1717594213765,2.1295,173.75,173.71,0.4]
[1717594214477,4.2588,173.76,173.71,0.4]
[1717594214677,2.1298,173.72,173.71,0.4]
[1717594214881,2.1298,173.73,173.71,0.4]
[1717594215787,2.1298,173.72,173.71,0.4]
[1717594215989,21.2984,173.72,173.71,0.4]
[1717594216288,2.1296,173.74,173.71,0.4]
[1717594216460,4.2588,173.76,173.71,0.4]
[1717594216657,2.1298,173.72,173.71,0.4]
[1717594218473,6.3895,173.72,173.71,0.4]
[1717594218786,6.5595,173.72,173.71,0.4]
[1717594218973,6.85128082,173.72,173.71,0.4]
[1717594219665,28.21548082,173.72,173.71,0.4]
[1717594219876,28.38548082,173.72,173.71,0.4]
[1717594220076,73.38548082,173.72,173.61,0.4]
[1717594220255,4.2608,173.68,173.61,0.4]
[1717594220782,2.1306,173.66,173.61,0.4]
[1717594220991,2.1307,173.65,173.61,0.4]
[1717594221196,2.1306,173.66,173.61,0.4]
[1717594221493,2.1307,173.65,173.61,0.4]
[1717594222190,4.55268082,173.67,173.61,0.4]
[1717594222487,2.1307,173.65,173.61,0.4]
[1717594222986,2.1308,173.64,173.61,0.4]
[1717594223393,2.1309,173.63,173.61,0.4]
[1717594224185,19.1746,173.67,173.61,0.4]
[1717594224387,2.1307,173.65,173.61,0.4]
[1717594225085,0.46178082,173.71,173.61,0.4]
[1717594225086,2.1304,173.67,173.61,0.4]
[1717594225581,2.1304,173.67,173.61,2.5312]
[1717594225969,2.1304,173.67,173.61,0.4]
[1717594226890,2.1306,173.66,173.61,0.4]
[1717594227188,2.1305,173.67,173.61,15.8391]
[1717594228000,10.6507,173.7,173.61,15.8391]
[1717594228001,4.2597,173.72,173.63,2.1309]
[1717594228480,2.13,173.71,173.64,2.1307]
[1717594229017,2.1301,173.7,173.64,2.1307]
[1717594229173,2.13,173.71,173.62,20.0]
[1717594229376,2.1299,173.71,173.63,0.34]
[1717594229576,2.1299,173.71,173.63,7.51]
[1717594229791,46.24229251,173.76,173.63,11.7719]
[1717594229792,8.95211404,173.76,173.63,11.7719]
[1717594230002,2.1297,173.73,173.67,2.1304]
[1717594230380,4.2587,173.76,173.67,2.1304]
[1717594230381,2.1296,173.74,173.67,2.1304]
[1717594230899,4.55078082,173.79,173.64,21.4928]
[1717594231202,2.1302,173.69,173.64,21.4928]
[1717594231420,2.1301,173.7,173.65,6.2229]
[1717594231580,2.13,173.71,173.65,6.2229]
[1717594231895,2.1301,173.7,173.65,6.2229]
[1717594232101,2.1301,173.7,173.64,15.2699]
[1717594232300,2.1301,173.7,173.64,17.4007]
[1717594232487,2.1297,173.74,173.65,20.0]
[1717594232687,2.1297,173.74,173.67,2.1304]
[1717594232885,2.1297,173.73,173.66,2.1305]
[1717594234605,2.1299,173.72,173.65,22.3006]
[1717594234912,2.1299,173.72,173.65,22.1306]
[1717594235092,2.1297,173.73,173.66,2.1305]
[1717594235280,2.1297,173.73,173.67,2.1304]
[1717594235476,2.1296,173.74,173.67,2.1304]
[1717594235876,2.1296,173.74,173.68,2.1303]
[1717594236101,19.1638,173.77,173.66,0.17]
[1717594236102,2.1297,173.73,173.67,2.1304]
[1717594236298,2.1297,173.73,173.66,2.3005]
[1717594236486,2.1298,173.73,173.66,2.3005]
[1717594236690,4.259,173.75,173.65,22.1306]
[1717594236915,2.1301,173.7,173.63,0.17]
[1717594237088,2.1304,173.67,173.64,6.3732]
[1717594237407,2.1305,173.67,173.64,6.3732]
[1717594237594,4.2604,173.69,173.64,6.3732]
[1717594237788,2.1304,173.68,173.64,6.3732]
[1717594238679,2.1305,173.67,173.64,6.3732]
[1717594238883,2.1308,173.65,173.61,0.4]
[1717594239091,0.29178082,173.67,173.61,0.4]
[1717594239288,2.1307,173.65,173.61,0.4]
[1717594239715,2.1308,173.64,173.61,0.4]
[1717594239885,2.1308,173.65,173.61,0.4]
[1717594240085,2.1306,173.66,173.61,0.4]
[1717594240297,2.1307,173.65,173.61,0.4]
[1717594240505,2.1308,173.64,173.61,0.4]
[1717594241501,2.131,173.63,173.61,0.4]
[1717594241812,2.1308,173.64,173.61,0.4]
[1717594242805,2.1309,173.63,173.61,0.4]
[1717594243819,2.131,173.62,173.61,0.4]
[1717594245711,2.131,173.63,173.61,0.4]
[1717594246108,2.131,173.62,173.61,0.4]
[1717594247406,6.3931,173.62,173.61,0.4]
[1717594248323,33.294,173.7,173.61,0.4]
[1717594248494,65.34,173.69,173.61,0.4]
[1717594248698,2.131,173.62,173.61,0.4]
[1717594248894,12.7863,173.62,173.61,0.4]
[1717594249323,6.3931,173.62,173.61,0.4]
[1717594250128,2.131,173.62,173.61,0.4]
[1717594251142,80.53772847,173.67,173.56,380.3]
[1717594251433,2.1317,173.57,173.56,380.3]
[1717594251905,4.2627,173.6,173.56,380.3]
[1717594252111,2.1316,173.58,173.56,380.3]
[1717594254833,4.2626,173.61,173.56,380.3]
[1717594255009,2.1316,173.58,173.56,380.3]
[1717594256203,2.1317,173.57,173.56,380.3]
[1717594256407,2.1317,173.57,173.56,379.8]
[1717594259826,12.7902,173.57,173.56,379.8]
[1717594260033,2.1316,173.58,173.56,379.8]
[1717594260209,2.1317,173.57,173.56,379.8]
[1717594262846,6.3951,173.57,173.56,379.8]
[1717594263330,2.1317,173.57,173.56,379.8]
[1717594264208,2.1317,173.57,173.51,2.5324]
[1717594264614,10.6568,173.6,173.52,2.1322]
[1717594264615,2.1316,173.58,173.52,2.1322]
[1717594264815,2.1317,173.57,173.52,2.1322]
[1717594265037,2.1316,173.58,173.52,2.1322]
[1717594265209,2.1316,173.58,173.52,22.047]
[1717594265414,2.1316,173.58,173.52,24.1792]
[1717594265613,2.1317,173.57,173.54,6.1825]
[1717594266546,10.6568,173.6,173.54,6.1825]
[1717594266547,2.1318,173.56,173.54,6.1825]
[1717594266713,4.2628,173.6,173.54,6.1825]
[1717594266911,2.1313,173.6,173.54,17.5746]
[1717594267112,2.1315,173.59,173.54,15.4426]
[1717594267338,2.1315,173.59,173.55,6.5341]
[1717594267837,2.1316,173.58,173.55,6.5341]
[1717594268024,4.2625,173.61,173.55,6.5341]
[1717594268337,2.1314,173.59,173.55,6.5341]
[1717594268635,2.1312,173.61,173.56,6.1431]
[1717594268836,12.7845,173.65,173.54,11.434]
[1717594269016,4.261,173.67,173.57,6.4051]
[1717594269218,2.1308,173.64,173.57,21.9754]
[1717594269418,4.2612,173.66,173.59,6.4051]
[1717594269419,2.1311,173.62,173.59,6.4051]
[1717594269830,4.2615,173.65,173.59,6.4051]
[1717594270034,2.1312,173.61,173.56,24.2864]
[1717594270222,2.1312,173.61,173.57,6.5844]
[1717594270939,2.1311,173.62,173.57,6.5844]
[1717594271236,2.1311,173.62,173.56,24.1443]
[1717594271612,2.1311,173.62,173.57,2.1317]
[1717594271943,2.1306,173.66,173.59,6.4423]
[1717594272117,2.1306,173.66,173.62,6.3024]
[1717594272313,4.2601,173.71,173.62,22.4035]
[1717594272514,2.1304,173.68,173.63,16.1011]
[1717594272741,4.2602,173.7,173.64,6.3024]
[1717594272953,2.1303,173.68,173.64,6.3024]
[1717594273248,2.1303,173.68,173.64,6.3552]
[1717594273426,2.1302,173.69,173.64,8.486]
[1717594273628,2.1302,173.69,173.65,6.3552]
[1717594273822,2.1301,173.7,173.64,2.1308]
[1717594274830,2.13,173.71,173.63,6.5442]
[1717594275022,2.1298,173.72,173.64,20.0]
[1717594275224,2.1297,173.73,173.67,2.1304]
[1717594276323,2.1298,173.72,173.68,6.3592]
[1717594276841,2.1298,173.72,173.68,15.0095]
[1717594277037,0.4,173.74,173.71,2.1299]
[1717594277249,0.4,173.74,173.71,6.0575]
[1717594277431,0.4,173.74,173.7,2.13]
[1717594277761,0.4,173.74,173.71,6.5009]
[1717594278057,0.4,173.74,173.7,15.3953]
[1717594278240,0.4,173.74,173.71,6.5063]
[1717594278423,0.4,173.74,173.72,6.5063]
[1717594278730,2.5296,173.74,173.72,6.5063]
[1717594278931,0.4,173.74,173.72,6.5063]
[1717594280024,2.5296,173.74,173.72,6.5063]
[1717594280249,2.1297,173.73,173.67,6.0529]
[1717594280453,2.1299,173.72,173.66,8.1834]
[1717594280657,2.1299,173.72,173.67,2.1304]
[1717594280829,2.1297,173.73,173.68,6.2601]
[1717594281035,2.1299,173.72,173.68,6.2601]
[1717594281537,2.1297,173.73,173.68,6.2601]
[1717594282042,2.1298,173.72,173.68,6.2601]
[1717594282233,0.4,173.74,173.63,23.2481]
[1717594282441,2.1303,173.69,173.63,25.3789]
[1717594282753,2.1303,173.68,173.63,25.3789]
[1717594282951,2.1302,173.69,173.63,25.3789]
[1717594283527,2.1302,173.69,173.64,2.1308]
[1717594283748,2.1302,173.69,173.64,8.4534]
[1717594284048,2.1301,173.7,173.65,2.1306]
[1717594284252,2.13,173.71,173.65,2.1306]
[1717594284459,2.1301,173.7,173.65,2.1306]
[1717594284759,2.1301,173.7,173.64,8.4533]
[1717594285058,4.6593,173.74,173.66,6.6421]
[1717594285357,2.1299,173.72,173.66,8.7726]
[1717594285562,2.13,173.71,173.66,8.7726]
[1717594286549,2.5296,173.74,173.68,2.1302]
[1717594286731,2.5296,173.74,173.69,2.1302]
[1717594286925,2.1298,173.73,173.69,6.48]
[1717594288867,2.1299,173.72,173.66,2.1305]
[1717594289244,2.1299,173.72,173.67,2.1304]
[1717594289570,2.1297,173.73,173.68,8.6546]
[1717594290069,2.1298,173.72,173.68,6.5243]
[1717594290363,2.13,173.71,173.68,6.5243]
[1717594290746,2.1301,173.7,173.66,6.5243]
[1717594290966,2.1301,173.7,173.67,6.5243]
[1717594291147,2.1299,173.71,173.67,6.5243]
[1717594291647,2.1299,173.72,173.67,8.6547]
[1717594292984,0.4,173.74,173.68,2.1303]
[1717594292985,2.1298,173.73,173.68,2.1303]
[1717594293265,2.5296,173.74,173.69,8.4223]
[1717594293647,0.4,173.74,173.69,15.6361]
[1717594293849,0.4,173.74,173.7,8.4221]
[1717594295069,2.5296,173.74,173.7,6.2921]
[1717594295360,2.5296,173.74,173.7,8.4221]
[1717594295567,2.5296,173.74,173.7,6.2921]
[1717594296348,2.5296,173.74,173.69,2.1301]
[1717594296573,2.1297,173.73,173.68,22.1302]